lending/lending_fUSD_20240112
["ID","MTS","AMOUNT","RATE_DAILY","PERIOD"]
[311378589,1705069941763,-500.0,0.00028611,2]
[311378590,1705069941773,-673.94,0.00028611,2]
[311378591,1705069941783,-1270.12,0.00028611,2]
[311378592,1705069941796,-536.49,0.00028611,2]
[311378593,1705069941805,-694.97,0.00028611,2]
[311378594,1705069941891,-500.0,0.00028611,2]
[311378595,1705069941902,-511.44,0.00028611,2]
[311378596,1705069941912,-409.9299779,0.00028611,2]
[311378597,1705069941922,-521.98,0.00028611,2]
[311378598,1705069941932,-592.85,0.00028611,2]
[311378599,1705069941941,-500.0,0.00028611,2]
[311378600,1705069941952,-511.22,0.00028611,2]
[311378601,1705069941961,-1245.3,0.00028611,2]
[311378602,1705069941971,-757.48,0.00028611,2]
[311378603,1705069941980,-715.96,0.00028611,2]
[311378604,1705069941989,-502.42,0.00028613,2]
[311378605,1705069941999,-881.21,0.00028613,2]
[311378606,1705069942009,-535.59,0.00028613,2]
[311378607,1705069942018,-514.86,0.00028613,2]
[311378608,1705069942028,-629.62,0.00028752,2]
[311378609,1705069942038,-923.31,0.00028752,2]
[311378610,1705069942048,-537.36,0.00028752,2]
[311378611,1705069942057,-760.69,0.00028752,2]
[311378612,1705069942067,-228.76,0.00028753,2]
[311378613,1705069942076,-761.19,0.00028882,2]
[311378614,1705069942086,-1576.7,0.00028882,2]
[311378615,1705069942095,-1676.67595895,0.00028882,2]
[311378616,1705069942105,-1776.75,0.00028882,2]
[311378617,1705069942114,-1028.49,0.00028882,2]
[311378618,1705069942123,-903.7956151,0.00028882,2]
[311378619,1705069942132,-823.31,0.00028882,2]
[311378620,1705069942141,-1993.05,0.00028882,2]
[311378621,1705069942151,-1088.58308755,0.00028882,2]
[311378622,1705069942161,-592.62,0.00028882,2]
[311378623,1705069942170,-1069.63905788,0.00028882,2]
[311378624,1705069942179,-11473.15805244,0.00028882,2]
[311378625,1705069942188,-1046.09,0.00028882,2]
[311378626,1705069942197,-693.07,0.00028882,2]
[311378627,1705069942206,-1530.35378311,0.00028882,2]
[311378628,1705069942215,-773.02,0.00028882,2]
[311378629,1705069942224,-1161.17,0.00028882,2]
[311378630,1705069942234,-3055.83438096,0.00028882,2]
[311378631,1705069942244,-996.94,0.00028883,2]
[311378632,1705069942253,-939.45,0.00028883,2]
[311378633,1705069942262,-535.41564831,0.00028883,2]
[311378634,1705069942272,-1978.76,0.00028883,2]
[311378635,1705069942281,-570.75,0.00028883,2]
[311378636,1705069942295,-10562.93000474,0.00028883,2]
[311378637,1705069942305,-6373.2833,0.00028883,2]
[311378638,1705069942315,-749.06,0.00028883,2]
[311378639,1705069942326,-928.92,0.00028883,2]
[311378640,1705069942336,-536.8,0.00028883,2]
[311378641,1705069942345,-2087.59,0.00028883,2]
[311378642,1705069942354,-904.99,0.00028883,2]
[311378643,1705069942364,-889.2,0.00028883,2]
[311378644,1705069942373,-978.93,0.00028883,2]
[311378645,1705069942382,-712.97,0.00028883,2]
[311378646,1705069942391,-553.53,0.00028883,2]
[311378647,1705069942400,-1083.61963886,0.00028883,2]
[311378648,1705069942409,-5000.76,0.00028883,2]
[311378649,1705069942419,-1837.15928546,0.00028883,2]
[311378650,1705069942429,-1063.8,0.00028883,2]
[311378651,1705069942440,-4398.01,0.00028883,2]
[311378652,1705069942449,-1384.92793824,0.00028883,2]
[311378653,1705069942457,-1749.19,0.00028883,2]
[311378654,1705069942467,-8501.24,0.00028883,2]
[311378655,1705069942476,-550.83,0.00028883,2]
[311378656,1705069942486,-563.63,0.00028883,2]
[311378657,1705069942496,-2396.92,0.00028883,2]
[311378658,1705069942505,-947.54,0.00028883,2]
[311378659,1705069942514,-3428.07,0.00028883,2]
[311378660,1705069942523,-3063.63,0.00028883,2]
[311378661,1705069942533,-2388.55,0.00028883,2]
[311378662,1705069942543,-502.43,0.00028884,2]
[311378663,1705069942553,-516.93,0.00028884,2]
[311378664,1705069942563,-612.85,0.00028884,2]
[311378665,1705069942573,-513.6,0.00028884,2]
[311378666,1705069942582,-152.17,0.00028884,2]
[311378667,1705069942592,-504.97,0.00028884,2]
[311378668,1705069942603,-605.86,0.00028884,2]
[311378669,1705069942613,-539.37,0.00028884,2]
[311378670,1705069942622,-585.64,0.00028884,2]
[311378671,1705069942632,-500.25,0.00028884,2]
[311378672,1705069942642,-667.14,0.00028884,2]
[311378673,1705069942651,-503.48452761,0.00028884,2]
[311378674,1705069942661,-510.76,0.00028884,2]
[311378675,1705069942671,-502.91,0.00028884,2]
[311378676,1705069942680,-547.92,0.00028884,2]
[311378677,1705069942689,-166.85,0.00028884,2]
[311378678,1705069942699,-759.66,0.00028884,2]
[311378679,1705069942709,-594.56,0.00028884,2]
[311378680,1705069942725,-526.91,0.00028884,2]
[311378681,1705069942735,-828.72197116,0.00028884,2]
[311378682,1705069942744,-527.55,0.00028884,2]
[311378683,1705069942753,-1088.61,0.00028884,2]
[311378684,1705069942763,-1292.02,0.00028884,2]
[311378685,1705069942773,-810.86,0.00028884,2]
[311378686,1705069942783,-4607.48,0.00028884,2]
[311378687,1705069942796,-504.16,0.00028884,2]
[311378688,1705069942806,-512.76,0.00028884,2]
[311378689,1705069942816,-284.44,0.00028884,2]
[311378690,1705069942826,-2315.49960578,0.00028884,2]
[311378691,1705069942835,-1074.78,0.00028884,2]
[311378692,1705069942844,-1390.09,0.00028884,2]
[311378693,1705069942854,-888.64,0.00028884,2]
[311378694,1705069942864,-845.13,0.00028884,2]
[311378695,1705069942874,-1741.89,0.00028884,2]
[311378696,1705069942883,-1065.29,0.00028884,2]
[311378697,1705069942893,-547.77,0.00028884,2]
[311378698,1705069942904,-867.02,0.00028884,2]
[311378699,1705069942913,-314.45,0.00028884,2]
[311378700,1705069942923,-1887.72,0.00028884,2]
[311378701,1705069942932,-978.71,0.00028884,2]
[311378702,1705069942941,-679.72,0.00028884,2]
[311378703,1705069942950,-523.60957704,0.00028884,2]
[311378704,1705069942960,-538.59,0.00028884,2]
[311378705,1705069942970,-552.41,0.00028884,2]
[311378706,1705069942979,-1607.17,0.00028884,2]
[311378707,1705069942988,-625.94,0.00028884,2]
[311378708,1705069942997,-1162.23,0.00028884,2]
[311378709,1705069943006,-3925.76,0.00028884,2]
[311378710,1705069943016,-6529.42798665,0.00028884,2]
[311378711,1705069943025,-1246.04057836,0.00028884,2]
[311378712,1705069943034,-502.54273445,0.00028885,2]
[311378713,1705069943048,-702.21,0.00028885,2]
[311378714,1705069943057,-544.56381228,0.00028885,2]
[311378715,1705069943066,-672.91406965,0.00028885,2]
[311378716,1705069943075,-753.23,0.00028885,2]
[311378717,1705069943084,-729.7741946,0.00028885,2]
[311378718,1705069943093,-566.97051414,0.00028885,2]
[311378719,1705069943103,-668.31760588,0.00028885,2]
[311378720,1705069943112,-695.72,0.00028885,2]
[311378721,1705069943121,-500.97,0.00028885,2]
[311378722,1705069943131,-569.83,0.00028885,2]
[311378723,1705069943141,-693.67,0.00028885,2]
[311378724,1705069943151,-738.9742877,0.00028885,2]
[311378725,1705069943161,-818.83,0.00028885,2]
[311378726,1705069943170,-1260.66,0.00028885,2]
[311378727,1705069943180,-997.13,0.00028885,2]
[311378728,1705069943189,-791.12,0.00028885,2]
[311378729,1705069943200,-583.65968204,0.00028885,2]
[311378730,1705069943209,-765.0,0.00028885,2]
[311378731,1705069943217,-666.68,0.00028885,2]
[311378732,1705069943227,-538.36,0.00028885,2]
[311378733,1705069943236,-778.8,0.00028885,2]
[311378734,1705069943246,-155.66761726,0.00028885,2]
[311378735,1705069943255,-523.33,0.00028885,2]
[311378736,1705069943265,-1386.57066304,0.00028885,2]
[311378737,1705069943274,-913.23,0.00028885,2]
[311378738,1705069943284,-632.45,0.00028885,2]
[311378739,1705069943295,-507.84,0.00028885,2]
[311378740,1705069943327,-714.0,0.00028885,2]
[311378741,1705069943340,-565.99,0.00028885,2]
[311378742,1705069943351,-528.31,0.00028885,2]
[311378743,1705069943361,-2064.67,0.00028885,2]
[311378744,1705069943371,-1012.05,0.00028885,2]
[311378745,1705069943382,-2200.81,0.00028885,2]
[311378746,1705069943392,-554.27,0.00028885,2]
[311378747,1705069943402,-574.37,0.00028885,2]
[311378748,1705069943412,-610.87,0.00028885,2]
[311378749,1705069943421,-679.96146981,0.00028885,5]
[311378750,1705069943431,-555.49,0.00028885,2]
[311378751,1705069943441,-560.56,0.00028885,2]
[311378752,1705069943450,-1995.25,0.00028885,2]
[311378753,1705069943459,-2984.33,0.00028885,2]
[311378754,1705069943469,-1911.09516931,0.00028885,2]
[311378755,1705069943478,-2058.28,0.00028885,2]
[311378756,1705069943487,-262.41,0.00028885,2]
[311378757,1705069943497,-1099.32,0.00028885,2]
[311378758,1705069943506,-531.4,0.00028885,2]
[311378759,1705069943515,-832.15,0.00028885,2]
[311378760,1705069943524,-963.56,0.00028885,2]
[311378761,1705069943534,-871.17,0.00028885,2]
[311378762,1705069943546,-674.14,0.00028885,2]
[311378763,1705069943556,-350.91,0.00028885,2]
[311378764,1705069943566,-674.17,0.00028885,2]
[311378765,1705069943575,-1270.1492831,0.00028885,2]
[311378766,1705069943585,-536.6,0.00028885,2]
[311378767,1705069943595,-695.06443326,0.00028885,2]
[311378768,1705069943605,-161.24,0.00028885,2]
[311378769,1705069943617,-511.45,0.00028885,2]
[311378770,1705069943626,-522.09065006,0.00028885,2]
[311378771,1705069943635,-592.94,0.00028885,2]
[311378772,1705069943644,-384.02,0.00028885,2]
[311378773,1705069943655,-511.22,0.00028885,2]
[311378774,1705069943664,-1245.44,0.00028885,2]
[311378775,1705069943674,-757.48,0.00028885,2]
[311378776,1705069943683,-716.12,0.00028885,2]
[311378777,1705069943694,-502.56,0.00028887,2]
[311378778,1705069943703,-881.31,0.00028887,2]
[311378779,1705069943713,-535.75,0.00028887,2]
[311378780,1705069943723,-515.04,0.00028887,2]
[311378781,1705069943733,-629.62,0.00029026,2]
[311378782,1705069943742,-923.31,0.00029026,2]
[311378783,1705069943752,-537.36,0.00029026,2]
[311378784,1705069943762,-760.69,0.00029026,2]
[311378785,1705069943772,-150.0,0.00029064,2]
[311378786,1705069943781,-709.683,0.00029109,2]
[311378787,1705069943794,-318.0,0.00029109,2]
[311378788,1705069943804,-500.0,0.00029114,2]
[311378789,1705069943814,-4540.888268,0.00029146,2]
[311378790,1705069943824,-204.0,0.00029262,8]
[311378791,1705069943834,-629.85,0.000293,2]
[311378792,1705069943844,-923.54,0.000293,2]
[311378793,1705069943855,-537.36,0.000293,2]
[311378794,1705069943864,-760.71,0.000293,2]
[311378795,1705069943874,-15779.9674344,0.000294,2]
[311378796,1705069943884,-15779.96743421,0.000294,2]
[311378797,1705069943894,-15779.96743421,0.000294,2]
[311378798,1705069943904,-15779.96743421,0.000294,2]
[311378799,1705069943914,-15779.96743421,0.000294,2]
[311378800,1705069943925,-279.43,0.00029448,2]
[311378801,1705069943935,-2011.4815424,0.000295,3]
[311378802,1705069943946,-915.30884577,0.000295,2]
[311378803,1705069943956,-500.0,0.00029619,2]
[311378804,1705069943967,-500.0,0.00029619,2]
[311378805,1705069943977,-500.0,0.00029619,2]
[311378806,1705069943988,-500.0,0.00029619,2]
[311378807,1705069943999,-500.0,0.00029619,2]
[311378808,1705069944010,-500.0,0.00029619,2]
[311378809,1705069944021,-500.0,0.00029619,2]
[311378810,1705069944032,-500.0,0.00029619,2]
[311378811,1705069944046,-300.0,0.00029619,2]
[311378812,1705069944057,-500.0,0.00029619,2]
[311378813,1705069944068,-500.0,0.00029619,2]
[311378814,1705069944078,-500.0,0.00029619,2]
[311378815,1705069944089,-500.0,0.00029619,2]
[311378816,1705069944100,-500.0,0.00029619,2]
[311378817,1705069944111,-500.0,0.00029619,2]
[311378818,1705069944122,-500.0,0.00029619,2]
[311378819,1705069944133,-500.0,0.00029619,2]
[311378820,1705069944144,-500.0,0.00029619,2]
[311378821,1705069944154,-500.0,0.00029619,2]
[311378822,1705069944165,-500.0,0.00029619,2]
[311378823,1705069944175,-500.0,0.00029619,2]
[311378824,1705069944189,-500.0,0.00029619,2]
[311378825,1705069944199,-500.0,0.00029619,2]
[311378826,1705069944209,-500.0,0.00029619,2]
[311378827,1705069944220,-500.0,0.00029619,2]
[311378828,1705069944230,-500.0,0.00029619,2]
[311378829,1705069944239,-500.0,0.00029619,2]
[311378830,1705069944249,-500.0,0.00029619,2]
[311378831,1705069944260,-500.0,0.00029619,2]
[311378832,1705069944270,-500.0,0.00029619,2]
[311378833,1705069944280,-500.0,0.00029619,2]
[311378834,1705069944292,-500.0,0.00029619,2]
[311378835,1705069944303,-500.0,0.00029619,2]
[311378836,1705069944312,-500.0,0.00029619,2]
[311378837,1705069944324,-500.0,0.00029619,2]
[311378838,1705069944334,-500.0,0.00029619,2]
[311378839,1705069944345,-500.0,0.00029619,2]
[311378840,1705069944354,-500.0,0.00029619,2]
[311378841,1705069944363,-500.0,0.00029619,2]
[311378842,1705069944373,-688.44,0.00029715,2]
[311378843,1705069944383,-4540.888268,0.00029771,2]
[311378844,1705069944393,-500.0,0.000298,2]
[311378845,1705069944403,-500.0,0.000298,2]
[311378846,1705069944413,-500.0,0.000298,2]
[311378847,1705069944423,-500.0,0.000298,2]
[311378848,1705069944433,-500.0,0.000298,2]
[311378849,1705069944443,-500.0,0.000298,2]
[311378850,1705069944453,-500.0,0.000298,2]
[311378851,1705069944463,-500.0,0.000298,2]
[311378852,1705069944473,-500.0,0.000298,2]
[311378853,1705069944483,-500.0,0.000298,2]
[311378854,1705069944494,-500.0,0.000298,2]
[311378855,1705069944504,-500.0,0.000298,2]
[311378856,1705069944514,-500.0,0.000298,2]
[311378857,1705069944524,-500.0,0.000298,2]
[311378858,1705069944534,-500.0,0.000298,2]
[311378859,1705069944546,-500.0,0.000298,2]
[311378860,1705069944556,-500.0,0.000298,2]
[311378861,1705069944566,-500.0,0.000298,2]
[311378862,1705069944576,-500.0,0.000298,2]
[311378863,1705069944586,-500.0,0.000298,2]
[311378864,1705069944596,-500.0,0.000298,2]
[311378865,1705069944607,-500.0,0.000298,2]
[311378866,1705069944617,-500.0,0.000298,2]
[311378867,1705069944629,-500.0,0.000298,2]
[311378868,1705069944639,-500.0,0.000298,2]
[311378869,1705069944649,-500.0,0.000298,2]
[311378870,1705069944658,-500.0,0.000298,2]
[311378871,1705069944668,-500.0,0.000298,2]
[311378872,1705069944679,-500.0,0.000298,2]
[311378873,1705069944689,-500.0,0.000298,2]
[311378874,1705069944700,-195.7410408,0.000298,2]
[311378875,1705069944710,-387668.55180668,0.000298,2]
[311378876,1705069944722,-19113.64939058,0.000298,2]
[311378877,1705069944732,-150.0,0.00029936,2]
[311378878,1705069944742,-150.0,0.00029936,2]
[311378879,1705069944752,-150.0,0.00029936,2]
[311378880,1705069944762,-150.0,0.00029936,2]
[311378881,1705069944772,-150.0,0.00029936,2]
[311378882,1705069944783,-150.0,0.00029936,2]
[311378883,1705069944796,-307.0,0.00029955,2]
[311378884,1705069944806,-2717.03664086,0.0002996,2]
[311378885,1705069944817,-2306.74948969,0.0002998,7]
[311378886,1705069944826,-150.0,0.00029999,2]
[311378887,1705069944836,-100000.0,0.0003,2]
[311378888,1705069944846,-72817.06069245,0.0003,4]
[311378889,1705069944856,-581.79448282,0.0003,2]
[311378890,1705069944866,-327.22655027,0.0003,4]
[311378891,1705069944875,-1573.31294625,0.0003,2]
[311378892,1705069944885,-6851.60015863,0.0003,4]
[311378893,1705069944895,-2842.72092176,0.0003,4]
[311378894,1705069944905,-192.58534306,0.0003,2]
[311378895,1705069944915,-9625.15929167,0.0003,2]
[311378896,1705069944924,-155.0,0.0003,2]
[311378897,1705069944934,-351.67940121,0.0003,2]
[311378898,1705069944944,-8826.98630773,0.0003,4]
[311378899,1705069944954,-597.0,0.0003,2]
[311378900,1705069944964,-188.80511033,0.0003,30]
[311378901,1705069944974,-4495.33403735,0.0003,30]
[311378902,1705069944984,-596.37213609,0.0003,2]
[311378903,1705069944994,-24076.45749194,0.0003,4]
[311378904,1705069945003,-1144.28682433,0.0003,3]
[311378905,1705069945014,-195.61755184,0.0003,4]
[311378906,1705069945023,-1450.0,0.0003,3]
[311378907,1705069945033,-3000.0,0.0003,2]
[311378908,1705069945046,-3000.0,0.0003,2]
[311378909,1705069945055,-3000.0,0.0003,2]
[311378910,1705069945066,-3000.0,0.0003,2]
[311378911,1705069945075,-3000.0,0.0003,2]
[311378912,1705069945085,-3000.0,0.0003,2]
[311378913,1705069945094,-1000.0,0.0003,2]
[311378914,1705069945104,-389.44,0.00030036,2]
[311378915,1705069945114,-153.84,0.00030137,2]
[311378916,1705069945124,-500.0,0.00030279,2]
[311378917,1705069945134,-200.0,0.00030279,2]
[311378918,1705069945144,-2270.0,0.0003033,2]
[311378919,1705069945154,-5428.865,0.0003033,2]
[311378920,1705069945164,-2901.0,0.0003033,2]
[311378921,1705069945173,-945.0,0.0003033,2]
[311378922,1705069945184,-835.0,0.0003033,2]
[311378923,1705069945194,-1028.0,0.0003033,2]
[311378924,1705069945204,-4540.888268,0.00030397,2]
[311378925,1705069945214,-279.43,0.00030426,2]
[311378926,1705069945224,-155.0,0.000305,4]
[311378927,1705069945235,-785.36,0.00030576,2]
[311378928,1705069945245,-314.16,0.00030576,2]
[311378929,1705069945255,-314.16,0.00030576,2]
[311378930,1705069945265,-314.16,0.00030576,2]
[311378931,1705069945275,-194.0,0.00030625,2]
[311378932,1705069945285,-194.0,0.00030706,2]
[311378933,1705069945299,-151.54484716,0.000309,2]
[311378934,1705069945310,-151.54484705,0.000309,2]
[311378935,1705069945320,-151.54484705,0.000309,2]
[311378936,1705069945330,-151.54484705,0.000309,2]
[311378937,1705069945340,-151.54484705,0.000309,2]
[311378938,1705069945350,-151.54484705,0.000309,2]
[311378939,1705069945360,-151.54484705,0.000309,2]
[311378940,1705069945369,-401.15,0.00030902,2]
[311378941,1705069945379,-401.15,0.00030902,2]
[311378942,1705069945389,-401.15,0.00030902,2]
[311378943,1705069945399,-939.95,0.00030902,2]
[311378944,1705069945409,-401.15,0.00030902,2]
[311378945,1705069945419,-401.15,0.00030902,2]
[311378946,1705069945429,-939.95,0.00030902,2]
[311378947,1705069945438,-1879.9,0.00030902,2]
[311378948,1705069945448,-100000.0,0.00031,2]
[311378949,1705069945458,-213471.23457813,0.00031,2]
[311378950,1705069945468,-228.76,0.00031017,2]
[311378951,1705069945478,-4540.888268,0.00031022,2]
[311378952,1705069945488,-153.84,0.0003105,2]
[311378953,1705069945497,-152.0,0.00031058,3]
[311378954,1705069945507,-204.0,0.0003107,11]
[311378955,1705069945517,-954.0,0.00031122,2]
[311378956,1705069945528,-157.95726622,0.0003131,2]
[311378957,1705069945538,-293.92,0.00031359,2]
[311378958,1705069945551,-279.43,0.00031405,2]
[311378959,1705069945562,-14472.33304762,0.00031482,3]
[311378960,1705069945573,-500.0,0.000315,2]
[311378961,1705069945583,-1000.0,0.00031506,2]
[311378962,1705069945593,-456.120001,0.00031506,2]
[311378963,1705069945603,-165.44,0.00031644,2]
[311378964,1705069945613,-4540.888268,0.00031647,2]
[311378965,1705069945623,-3000.0,0.000318,2]
[311378966,1705069945634,-372571.135178,0.000318,2]
[311378967,1705069945644,-153.84,0.00031963,2]
[311378968,1705069945654,-500.0,0.0003199,7]
[311378969,1705069945664,-500.0,0.0003199,7]
[311378970,1705069945674,-150.0,0.00031999,2]
[311378971,1705069945683,-100000.0,0.00032,2]
[311378972,1705069945693,-13056.05779594,0.00032,4]
[311378973,1705069945703,-196.45713785,0.00032,4]
[311378974,1705069945714,-297.49420797,0.00032,4]
[311378975,1705069945724,-3000.0,0.00032,2]
[311378976,1705069945734,-1500.0,0.00032,3]
[311378977,1705069945743,-3000.0,0.0003201,2]
[311378978,1705069945753,-3000.0,0.0003202,2]
[311378979,1705069945763,-3000.0,0.0003203,2]
[311378980,1705069945773,-3000.0,0.0003204,2]
[311378981,1705069945782,-151.54484705,0.00032049,2]
[311378982,1705069945797,-3238.732501,0.0003205,2]
[311378983,1705069945806,-11697.44,0.000321,2]
[311378984,1705069945816,-318.0,0.00032109,2]
[311378985,1705069945826,-1276.680494,0.00032165,2]
[311378986,1705069945835,-285.0,0.0003221,5]
[311378987,1705069945847,-4540.888268,0.00032273,2]
[311378988,1705069945857,-279.43,0.00032383,2]
[311378989,1705069945867,-688.44,0.00032417,2]
[311378990,1705069945877,-1276.680494,0.00032567,2]
[311378991,1705069945887,-389.44,0.00032767,2]
[311378992,1705069945896,-3000.0,0.000328,2]
[311378993,1705069945906,-152.0,0.00032869,4]
[311378994,1705069945916,-500.0,0.00032876,2]
[311378995,1705069945926,-500.0,0.00032876,2]
[311378996,1705069945936,-500.0,0.00032876,2]
[311378997,1705069945945,-500.0,0.00032876,2]
[311378998,1705069945955,-500.0,0.00032876,2]
[311378999,1705069945966,-500.0,0.00032876,2]
[311379000,1705069945976,-500.0,0.00032876,2]
[311379001,1705069945986,-500.0,0.00032876,2]
[311379002,1705069945995,-500.0,0.00032876,2]
[311379003,1705069946005,-500.0,0.00032876,2]
[311379004,1705069946015,-500.0,0.00032876,2]
[311379005,1705069946025,-500.0,0.00032876,2]
[311379006,1705069946034,-500.0,0.00032876,2]
[311379007,1705069946047,-500.0,0.00032876,2]
[311379008,1705069946057,-500.0,0.00032876,2]
[311379009,1705069946066,-409.79540313,0.00032876,2]
[311379010,1705069946077,-2133.57243463,0.00032876,7]
[311379011,1705069946087,-616.47,0.00032876,2]
[311379012,1705069946096,-616.47,0.00032876,2]
[311379013,1705069946106,-616.47,0.00032876,2]
[311379014,1705069946116,-616.47,0.00032876,2]
[311379015,1705069946126,-616.47,0.00032876,2]
[311379016,1705069946136,-616.47,0.00032876,2]
[311379017,1705069946145,-616.47,0.00032876,2]
[311379018,1705069946155,-616.47,0.00032876,2]
[311379019,1705069946165,-616.47,0.00032876,2]
[311379020,1705069946174,-616.47,0.00032876,2]
[311379021,1705069946184,-616.47,0.00032876,2]
[311379022,1705069946194,-616.47,0.00032876,2]
[311379023,1705069946207,-616.47,0.00032876,2]
[311379024,1705069946430,-616.47,0.00032876,2]
[311379025,1705069946440,-616.47,0.00032876,2]
[311379026,1705069946450,-616.47,0.00032876,2]
[311379027,1705069946459,-616.47,0.00032876,2]
[311379028,1705069946469,-616.47,0.00032876,2]
[311379029,1705069946478,-616.47,0.00032876,2]
[311379030,1705069946487,-616.47,0.00032876,2]
[311379031,1705069946496,-616.47,0.00032876,2]
[311379032,1705069946506,-616.47,0.00032876,2]
[311379033,1705069946515,-616.47,0.00032876,2]
[311379034,1705069946524,-616.49,0.00032876,2]
[311379035,1705069946533,-1500.0,0.00032876,2]
[311379036,1705069946546,-168.36177523,0.00032876,7]
[311379037,1705069946555,-290.5840989,0.00032876,7]
[311379038,1705069946564,-500.0,0.00032876,7]
[311379039,1705069946573,-210.48265192,0.00032876,7]
[311379040,1705069946582,-153.84,0.00032877,2]
[311379041,1705069946592,-841.95,0.00032877,15]
[311379042,1705069946602,-204.0,0.00032878,14]
[311379043,1705069946611,-4540.888268,0.00032898,2]
[311379044,1705069946620,-1000.0,0.000329,2]
[311379045,1705069946629,-150.0,0.00032936,2]
[311379046,1705069946638,-150.0,0.00032957,2]
[311379047,1705069946647,-1276.680494,0.00032969,2]
[311379048,1705069946656,-100000.0,0.00033,3]
[311379049,1705069946665,-2000.0,0.00033,2]
[311379050,1705069946674,-500.0,0.00033086,7]
[311379051,1705069946683,-228.76,0.00033281,2]
[311379052,1705069946693,-2270.0,0.0003333,2]
[311379053,1705069946703,-2901.0,0.0003333,2]
[311379054,1705069946712,-945.0,0.0003333,2]
[311379055,1705069946723,-332.868,0.0003333,2]
[311379056,1705069946732,-1028.0,0.0003333,2]
[311379057,1705069946742,-279.43,0.00033362,2]
[311379058,1705069946751,-1276.680494,0.00033372,2]
[311379059,1705069946761,-151.54484705,0.00033377,2]
[311379060,1705069946771,-1500.0,0.00033424,4]
[311379061,1705069946781,-5000.0,0.000335,15]
[311379062,1705069946792,-4540.888268,0.00033523,2]
[311379063,1705069946802,-2605.9147626,0.00033545,6]
[311379064,1705069946812,-1000.0,0.00033545,7]
[311379065,1705069946822,-1000.0,0.00033545,7]
[311379066,1705069946833,-1000.0,0.00033545,7]
[311379067,1705069946843,-1538.25529488,0.00033545,6]
[311379068,1705069946853,-1000.0,0.00033545,7]
[311379069,1705069946862,-1194.34824672,0.00033545,6]
[311379070,1705069946872,-1000.0,0.00033545,7]
[311379071,1705069946882,-115511.70867981,0.00033586,10]
[311379072,1705069946891,-36740.63468076,0.00033586,10]
[311379073,1705069946902,-64060.56759836,0.00033586,10]
[311379074,1705069946911,-13464.69825305,0.00033586,10]
[311379075,1705069946920,-2239.39289056,0.00033603,6]
[311379076,1705069946930,-1000.0,0.00033603,7]
[311379077,1705069946939,-1902.64891646,0.00033603,6]
[311379078,1705069946949,-50000.0,0.00033615,10]
[311379079,1705069946959,-4521.09322128,0.00033615,10]
[311379080,1705069946968,-17165.14160307,0.00033615,10]
[311379081,1705069946978,-1068.28576411,0.00033638,6]
[311379082,1705069946988,-18364.91,0.00033672,2]
[311379083,1705069946998,-1000.0,0.00033699,7]
[311379084,1705069947008,-1000.0,0.00033713,7]
[311379085,1705069947017,-1000.0,0.00033713,7]
[311379086,1705069947026,-1000.0,0.00033713,7]
[311379087,1705069947036,-214.68625322,0.00033713,6]
[311379088,1705069947049,-1000.0,0.00033713,7]